Cogmind - Beta 14 *** ADVENTURER MODE // 2025.01.17 @ 03:50:08 Player: swetpototo Result: Destroyed by H-66 Slayer with Gauss Rifle Performance ------------- Evolutions (5) 2500 Regions Visited (13) 2600 Robots Destroyed (93) 465 Value Destroyed (3421) 3421 Prototype IDs (1) 20 Alien Tech Used (0) 0 Bonus (1623) 1623 TOTAL SCORE: 10629 Bonus ------- High Alert Combat Kills 261 Follower Combat Kills 207 Entered Garrisons 200 Entered DSFs 1000 Friendly Fire -45 Cogmind --------- Core Integrity 0/1000 Matter 190/300 Energy 99/100 System Corruption 1% Temperature Cool (0) Movement Core (50) Location -5/Upper Caves Parts ------- > --- POWER (2) -------- (None) > --- PROPULSION (4) --- (None) > --- UTILITY (7) ------ (None) > --- WEAPON (4) ------- (None) > --- INVENTORY (5) ---- Light Angular Momentum Engine Advanced Weight Redist. System Hardened Medium Armor Plating Smartbomb Launcher Peak State ------------ > --- POWER ------------ (None) > --- PROPULSION ------- Armored Huge Wheel Armored Huge Wheel > --- UTILITY ---------- Medium Storage Unit Huge Storage Unit Advanced Signal Interpreter Microactuators Improved Medium Armor Plating Improved Medium Armor Plating Drone Bay > --- WEAPON ----------- Gauss Cannon Gauss Cannon Gauss Cannon > --- INVENTORY -------- Light Nuclear Core Micro Nuclear Core Light Angular Momentum Engine Improved Medium Treads Improved Medium Treads Armored Huge Wheel Improved Heat Sink Large Matter Pod Matter Compressor Matter Filter Matter Filter Weapon Cycler Hardened Medium Armor Plating Improved Medium Armor Plating Improved Medium Armor Plating Force Field Coil Gun Magnetic Acceleration Cannon Proton Missile Launcher Heavy Mace [Rating: 60] Favorites ----------- Power Neutrino Core Engine Improved Deuterium Engine Power Core Neutrino Core Propulsion Armored Huge Wheel Treads Improved Medium Treads Leg Carbon-fiber Leg Wheel Armored Huge Wheel Flight Unit Nuclear Pulse Array Utility Medium Storage Unit Device Improved Terrain Scanner Storage Medium Storage Unit Processor Improved Signal Interpreter Hackware System Shield Protection Hardened Medium Armor Plating Weapon Minigun Energy Gun Medium Laser Ballistic Gun Minigun Ballistic Cannon Gauss Cannon Launcher Proton Missile Launcher Special Weapon Mining Laser Impact Weapon Heavy Mace Build | -11 -10 -10 -8 -7 -7 -7 -7 -6 -6 -6 -6 -5 -5 ------- Run | Yrd Mat Sub Mat Fac Gar Fac DSF Fac Was Fac DSF Fac Upp Slots Evolved 10 | . . . 4 2 . . . 2 . . . 2 . Power 1 | . . . . . . . . . . . . 1 . Propulsion 2 | . . . 1 . . . . 1 . . . . . Utility 5 | . . . 2 2 . . . 1 . . . . . Weapon 2 | . . . 1 . . . . . . . . 1 . Parts Attached 77 | . 3 5 4 18 17 . 5 19 . 3 . 3 . Power 11 | . . 1 . . 3 . 1 5 . 1 . . . Engine 2 | . . . . . 1 . . 1 . . . . . Core 9 | . . 1 . . 2 . 1 4 . 1 . . . Reactor . | . . . . . . . . . . . . . . Propulsion 12 | . . 2 1 1 1 . . 5 . 1 . 1 . Treads 2 | . . . . . . . . 2 . . . . . Leg 3 | . . 2 1 . . . . . . . . . . Wheel 5 | . . . . 1 1 . . 3 . . . . . Hover . | . . . . . . . . . . . . . . Flight 2 | . . . . . . . . . . 1 . 1 . Utility 30 | . 1 . 2 11 6 . 3 4 . 1 . 2 . Device 8 | . 1 . . 3 2 . . 1 . . . 1 . Storage 4 | . . . 1 1 . . 1 . . . . 1 . Processor 5 | . . . . 4 . . . 1 . . . . . Hackware 1 | . . . . . . . . . . 1 . . . Protection 12 | . . . 1 3 4 . 2 2 . . . . . Artifact . | . . . . . . . . . . . . . . Weapon 24 | . 2 2 1 6 7 . 1 5 . . . . . Energy Gun . | . . . . . . . . . . . . . . Energy Cannon . | . . . . . . . . . . . . . . Ballistic Gun 13 | . 1 2 . 4 5 . . 1 . . . . . Ballistic Cannon 6 | . . . 1 1 . . 1 3 . . . . . Launcher 1 | . . . . . 1 . . . . . . . . Special Weapon 1 | . 1 . . . . . . . . . . . . Impact Weapon 3 | . . . . 1 1 . . 1 . . . . . Slashing Weapon . | . . . . . . . . . . . . . . Piercing Weapon . | . . . . . . . . . . . . . . Special Melee Weapon . | . . . . . . . . . . . . . . Unidentified Prototypes 1 | . . . . . . . . . . 1 . . . Parts Lost 32 | . . . . 4 13 1 . 9 4 . . . 1 Power 6 | . . . . . 2 1 . 3 . . . . . Propulsion 5 | . . . . 2 1 . . 1 . . . . 1 Utility 13 | . . . . 2 5 . . 4 2 . . . . Weapon 8 | . . . . . 5 . . 1 2 . . . . Highest Loss Streak 7 | . . . . 2 7 1 . 3 4 . . . 1 To Critical Strikes . | . . . . . . . . . . . . . . Average Slot Usage (%) 72 | . 100 100 83 91 71 61 71 73 56 21 17 4 6 Engine 1 | . 14 5 . . 1 . . 1 . . . . . Core 5 | . . 8 9 7 4 7 7 4 5 . . . . Leg 8 | . 28 28 27 16 . . . . . . . . . Wheel 5 | . . . . 2 7 7 7 9 13 10 . . . Device 8 | . 14 14 9 9 9 7 7 7 4 . . . 3 Storage 8 | . 14 14 9 7 7 7 14 13 8 . . . . Processor 8 | . . . . 14 15 15 12 4 6 6 6 1 . Protection 6 | . . . 9 6 6 7 8 11 3 . . . . Ballistic Gun 10 | . 14 24 18 18 16 . . 2 . . . . . Ballistic Cannon 3 | . . . 2 3 . . 4 8 12 . . . . Impact Weapon 1 | . . . . . . 7 7 5 . . . . . Peak Build Rating 60 | . 9 26 36 52 47 29 36 60 57 28 15 24 24 Average Rating 38 | . 8 17 33 46 37 28 32 49 45 21 13 5 14 On Entrance 24 | 6 6 9 26 36 45 29 26 36 55 22 15 9 24 Naked Turns 180 | . . . . . . . . . . . . 93 87 Heaviest Build 133 | 14 15 24 53 55 48 21 124 133 126 . . 12 12 Greatest Support 56 | 20 20 40 55 55 28 28 28 56 56 56 6 13 13 Greatest Overweight (x) 4 | . . . . 1 1 . 4 4 2 . . . 3 Average Overweight (x) . | . . . . . . . 2 2 1 . . . . Largest Inventory Capacity 25 | . 8 8 10 10 10 10 25 25 25 5 5 5 5 Average Capacity 13 | . 8 8 9 10 10 10 24 25 17 5 5 5 5 Most Carried 25 | . 7 8 10 10 10 7 14 25 24 5 5 5 5 Average Carried 11 | . 6 7 7 9 9 7 8 20 16 4 5 4 5 Final Capacity 25 | 8 8 8 10 10 10 10 25 25 5 5 5 5 5 Final Carried 22 | 6 7 8 10 10 7 7 14 22 5 5 5 5 5 Class Distribution -------------------- 31% | Mutant 21% | Scavenger-Mutant 18% | Skirmisher 15% | Scavenger-Skirmisher 5% | Scavenger-Tank 4% | Tank 3% | Hacker-Mutant Dominant Class ---------------- Mutant | -10/Materials Mutant | -10/Subcaves Scavenger-Mutant | -8/Materials Scavenger-Skirmisher | -7/Factory Skirmisher | -7/Garrison Scavenger-Mutant | -7/Factory Scavenger-Mutant | -7/DSF Mutant | -6/Factory Tank | -6/Waste Mutant | -6/Factory Hacker-Mutant | -6/DSF Mutant | -5/Factory Mutant | -5/Upper Caves Resources | -11 -10 -10 -8 -7 -7 -7 -7 -6 -6 -6 -6 -5 -5 ----------- Run | Yrd Mat Sub Mat Fac Gar Fac DSF Fac Was Fac DSF Fac Upp Matter Collected 2608 | 174 15 129 213 997 551 14 30 431 . . . . 54 Remotely . | . . . . . . . . . . . . . . Salvage Created 3191 | . 15 78 393 1278 637 17 152 621 . . . . . Parts 182 | . 5 5 40 62 38 . 5 27 . . . . . Haulers Intercepted 3 | . . . 1 1 . . . 1 . . . . . Recyclers Shooed 4 | . . . . 1 . . . 3 . . . . . Parts Field Recycled . | . . . . . . . . . . . . . . Retrieved Matter . | . . . . . . . . . . . . . . Parts Self-Destructed 1 | . . . . . . . . . . . . . 1 Prevented . | . . . . . . . . . . . . . . Kills | -11 -10 -10 -8 -7 -7 -7 -7 -6 -6 -6 -6 -5 -5 ------- Run | Yrd Mat Sub Mat Fac Gar Fac DSF Fac Was Fac DSF Fac Upp Combat Hostiles Destroyed 73 | . . 2 10 25 16 . 3 17 . . . . . Melee 3 | . . . . . . . . 3 . . . . . Guns 49 | . . 2 10 22 14 . . 1 . . . . . Cannons 13 | . . . . 2 . . . 11 . . . . . AOE 3 | . . . . 1 2 . . . . . . . . Classes Destroyed 18 | . 1 1 6 4 3 . 1 2 . . . . . Worker 5 | . . . . 4 . . . 1 . . . . . Builder 3 | . . . 2 . . 1 . . . . . . . Tunneler 1 | . 1 . . . . . . . . . . . . Hauler 3 | . . . 1 1 . . . 1 . . . . . Recycler 3 | . . . . 3 . . . . . . . . . Operator 1 | . . . . 1 . . . . . . . . . Watcher 4 | . . . 1 1 . . . 2 . . . . . Swarmer 24 | . . . 7 10 . . 1 6 . . . . . Cutter 3 | . . . . . 3 . . . . . . . . Grunt 26 | . . . 1 12 7 . . 6 . . . . . Brawler 1 | . . . . . . . . 1 . . . . . Duelist 1 | . . . . . 1 . . . . . . . . Sentry 9 | . . . 2 2 4 . . 1 . . . . . Specialist 2 | . . . . . . . 2 . . . . . . Hunter 1 | . . . . . . . . 1 . . . . . Programmer 3 | . . . . 1 . . . 2 . . . . . Behemoth 1 | . . . . . 1 . . . . . . . . Subdweller 2 | . . 2 . . . . . . . . . . . Best Kill Streak 6 | . 1 1 6 5 4 1 2 4 . . . . . Combat Bots Only 4 | . . 1 4 4 4 . 1 3 . . . . . Max Kills in Single Turn 3 | . 1 1 1 3 2 1 1 2 . . . . . Gunslinging 1 | . . . . . 1 . . . . . . . . Exploded 2 | . . . . 1 2 . . . . . . . . Melee 1 | . . . . . . . . 1 . . . . . Uniques/NPCs Destroyed . | . . . . . . . . . . . . . . Combat | -11 -10 -10 -8 -7 -7 -7 -7 -6 -6 -6 -6 -5 -5 -------- Run | Yrd Mat Sub Mat Fac Gar Fac DSF Fac Was Fac DSF Fac Upp Hostile Shots Fired 790 | . . 11 34 198 153 . 20 216 4 6 14 68 66 Missed 258 | . . 4 7 73 49 . 7 61 . 4 7 26 20 Damage Taken 7297 | . . 109 211 1368 1565 57 307 2093 135 16 242 568 626 Core 2010 | . . 25 24 172 261 10 94 140 28 9 242 540 465 Absorbed by Shields 7 | . . . . . 7 . . . . . . . . Redirected to Shielding 32 | . . . . . . . 22 10 . . . . . Ignored by Resistances 2070 | . . 30 61 413 445 15 85 580 37 3 65 158 178 Core Remaining (%) 71 | 100 . 90 95 . . . 23 . . . 50 . . Volleys Fired 220 | . 8 9 29 70 43 . . 61 . . . . . Largest 3 | . 2 2 3 3 3 . . 3 . . . . . Hottest 144 | . 100 40 92 96 81 . . 144 . . . . . Shots Fired 470 | . 12 18 61 192 91 . . 96 . . . . . Gun 375 | . 8 18 58 178 90 . . 23 . . . . . Cannon 90 | . . . 3 14 . . . 73 . . . . . Launcher 1 | . . . . . 1 . . . . . . . . Special 4 | . 4 . . . . . . . . . . . . Kinetic 461 | . 4 18 61 192 90 . . 96 . . . . . Thermal 8 | . 8 . . . . . . . . . . . . Explosive . | . . . . . . . . . . . . . . Electromagnetic 1 | . . . . . 1 . . . . . . . . Robot Hit Streak 27 | . 7 25 27 17 23 . . 15 . . . . . Robot Miss Streak 8 | . . . 3 3 8 . . 5 . . . . . Penetration Max 1 | . . . . . . . . 1 . . . . . Secondary Targets 7 | . . 1 . 2 4 . . . . . . . . Max Gunslinging Chain 1 | . . 1 . 1 1 . . . . . . . . Shots Hit Robots 384 | . 7 18 47 143 77 1 6 85 . . . . . Core Hits 242 | . 2 4 26 64 79 . . 62 . 3 . 2 . Critical Kills 1 | . . . . . . . . 1 . . . . . Critical Parts Destroyed 5 | . . . . . 1 . 1 3 . . . . . Critical Strikes 12 | . 1 . . . 1 . 1 9 . . . . . Burn 1 | . 1 . . . . . . . . . . . . Destroy 1 | . . . . . 1 . . . . . . . . Blast 5 | . . . . . . . . 5 . . . . . Smash 5 | . . . . . . . 1 4 . . . . . Melee Attacks 27 | . . . . 1 1 1 6 18 . . . . . Impact 27 | . . . . 1 1 1 6 18 . . . . . Slashing . | . . . . . . . . . . . . . . Piercing . | . . . . . . . . . . . . . . Sneak Attacks 3 | . . . . . . 1 2 . . . . . . Combat Hostiles 2 | . . . . . . . 2 . . . . . . Follow-up Attacks . | . . . . . . . . . . . . . . Damage Inflicted 8961 | . 87 176 619 3321 1858 117 313 2434 . 22 . 14 . Guns 5220 | . 87 176 556 2321 1707 . . 373 . . . . . Cannons 1750 | . . . 63 307 . . . 1380 . . . . . Explosions 1074 | . . . . 693 151 . . 230 . . . . . Melee 846 | . . . . . . 117 313 416 . . . . . Ramming 71 | . . . . . . . . 35 . 22 . 14 . Kinetic 6919 | . 36 176 619 2628 1707 . . 1753 . . . . . Thermal 300 | . 51 . . 249 . . . . . . . . . Explosive 444 | . . . . 444 . . . . . . . . . Electromagnetic 381 | . . . . . 151 . . 230 . . . . . Impact 846 | . . . . . . 117 313 416 . . . . . Slashing . | . . . . . . . . . . . . . . Piercing . | . . . . . . . . . . . . . . Highest Corruption 19 | . . . . . . . . 7 18 19 19 1 1 Average Corruption 6 | . . . . . . . . 3 13 18 19 1 1 Corruption Purged . | . . . . . . . . . . . . . . Corruption Blocked . | . . . . . . . . . . . . . . Effects 30 | . . . . . . . . 12 7 10 1 . . Message Errors 3 | . . . . . . . . . 1 2 . . . Matter Fused 6 | . . . . . . . . 2 1 3 . . . Heat Flow Errors 4 | . . . . . . . . 2 1 . 1 . . Energy Discharges 9 | . . . . . . . . 3 2 4 . . . Parts Rejected 2 | . . . . . . . . 1 1 . . . . Data Loss (minor) 3 | . . . . . . . . 2 . 1 . . . Misfires 1 | . . . . . . . . 1 . . . . . Misdirections 1 | . . . . . . . . . 1 . . . . Weapon Failures 1 | . . . . . . . . 1 . . . . . Overload Shots . | . . . . . . . . . . . . . . Overflow Damage 554 | . . . . 89 76 87 121 181 . . . . . Projectiles 28 | . . . . 4 . . . 24 . . . . . Explosions 161 | . . . . 85 76 . . . . . . . . Melee 365 | . . . . . . 87 121 157 . . . . . Knockbacks 26 | . . . 2 7 . 1 2 14 . . . . . Impact 7 | . . . . . . 1 2 4 . . . . . Kinetic 19 | . . . 2 7 . . . 10 . . . . . Secondary . | . . . . . . . . . . . . . . Self-Inflicted Damage 422 | . . . . 229 135 . . 43 . 8 . 7 . Shots 8 | . . . . 4 2 . . 2 . . . . . Rammed 19 | . . . . . . . . 3 . 13 . 3 . Targets Rammed 19 | . . . . . . . . 3 . 13 . 3 . Kicked . | . . . . . . . . . . . . . . Crushed . | . . . . . . . . . . . . . . Highest Temperature 443 | . 27 . 115 403 254 . . 443 79 . 195 . . Average Temperature 92 | . 13 . 12 104 65 . . 139 51 . 109 . . Received Heat Transfer 2058 | . . . 63 429 867 . . 570 . . . 30 99 Effects 5 | . . . . 4 . . . 1 . . . . . Shutdowns 1 | . . . . 1 . . . . . . . . . Interference 4 | . . . . 3 . . . 1 . . . . . Siege Activations . | . . . . . . . . . . . . . . Robots Corrupted 6 | . . . . . . 1 3 2 . . . . . Combat Hostiles 5 | . . . . . . . 3 2 . . . . . Parts Fried 8 | . . . . . 1 1 4 2 . . . . . Impact Corruptions 14 | . . . . . . 4 5 5 . . . . . Robots Melted . | . . . . . . . . . . . . . . Combat Hostiles . | . . . . . . . . . . . . . . Parts Melted . | . . . . . . . . . . . . . . Heat Transferred 372 | . 222 . . 150 . . . . . . . . . Parts Sabotaged . | . . . . . . . . . . . . . . Parts Stolen . | . . . . . . . . . . . . . . Parts Stripped . | . . . . . . . . . . . . . . Power Chain Reactions . | . . . . . . . . . . . . . . Alert | -11 -10 -10 -8 -7 -7 -7 -7 -6 -6 -6 -6 -5 -5 ------- Run | Yrd Mat Sub Mat Fac Gar Fac DSF Fac Was Fac DSF Fac Upp Peak Influence 740 | . 5 . 311 579 740 341 336 341 85 56 34 231 . Initial 357 | . . . . 120 357 336 206 152 85 27 34 14 . Average 243 | . 4 . 163 258 579 336 247 191 72 30 34 116 . Maximum Alert Level 3 | . . . 1 2 3 1 1 1 . . . 1 . Low Security (%) 47 | . 100 . 74 47 . . . 45 100 100 100 70 . Level 1 31 | . . . 25 24 13 100 100 54 . . . 29 . Level 2 18 | . . . . 28 70 . . . . . . . . Level 3 1 | . . . . . 15 . . . . . . . . Level 4 . | . . . . . . . . . . . . . . Level 5 . | . . . . . . . . . . . . . . High Security . | . . . . . . . . . . . . . . Max Security . | . . . . . . . . . . . . . . Squads Dispatched 18 | . . . . 7 . . 1 7 . 1 1 1 . Investigation 4 | . . . . 2 . . . 1 . 1 . . . Extermination 4 | . . . . 2 . . . 2 . . . . . Reinforcement 7 | . . . . 3 . . 1 1 . . 1 1 . Assault . | . . . . . . . . . . . . . . Garrison 3 | . . . . . . . . 3 . . . . . Intercept . | . . . . . . . . . . . . . . Searches Triggered . | . . . . . . . . . . . . . . Construction Impeded . | . . . . . . . . . . . . . . Haulers Reinforced . | . . . . . . . . . . . . . . Active Scanning Responses . | . . . . . . . . . . . . . . Cargo Convoy Interrupts . | . . . . . . . . . . . . . . Stealth | -11 -10 -10 -8 -7 -7 -7 -7 -6 -6 -6 -6 -5 -5 --------- Run | Yrd Mat Sub Mat Fac Gar Fac DSF Fac Was Fac DSF Fac Upp Distress Signals 4 | . . . 1 1 . . . 2 . . . . . Communications Jammed . | . . . . . . . . . . . . . . Distress Signals . | . . . . . . . . . . . . . . Times Spotted 149 | . 1 6 13 42 20 . 6 26 6 1 4 16 8 Peak Tracking Total 10 | . . 5 6 5 4 . 4 6 6 2 4 10 5 Tactical Retreats 20 | . . . 1 5 2 . 3 2 . . . 5 2 Traps | -11 -10 -10 -8 -7 -7 -7 -7 -6 -6 -6 -6 -5 -5 ------- Run | Yrd Mat Sub Mat Fac Gar Fac DSF Fac Was Fac DSF Fac Upp Traps Triggered 13 | . . . . 2 2 1 1 3 . . 1 3 . Indirectly . | . . . . . . . . . . . . . . Trap Hack Attempts . | . . . . . . . . . . . . . . Triggered . | . . . . . . . . . . . . . . Disarmed . | . . . . . . . . . . . . . . Reprogrammed . | . . . . . . . . . . . . . . Reused . | . . . . . . . . . . . . . . Traps Extracted . | . . . . . . . . . . . . . . Installed . | . . . . . . . . . . . . . . Triggered . | . . . . . . . . . . . . . . Machines | -11 -10 -10 -8 -7 -7 -7 -7 -6 -6 -6 -6 -5 -5 ---------- Run | Yrd Mat Sub Mat Fac Gar Fac DSF Fac Was Fac DSF Fac Upp Machines Disabled 14 | . . . . 6 2 . . 6 . . . . . Max in Single Turn 5 | . . . . 5 2 . . 2 . . . . . Garrison Access 1 | . . . . . . . . . . . . 1 . Phase Generator 1 | . . . . . 1 . . . . . . . . Machines Repaired . | . . . . . . . . . . . . . . Machines Dismantled . | . . . . . . . . . . . . . . Machines Sabotaged . | . . . . . . . . . . . . . . Overloaded Fab Kills . | . . . . . . . . . . . . . . Hacking | -11 -10 -10 -8 -7 -7 -7 -7 -6 -6 -6 -6 -5 -5 --------- Run | Yrd Mat Sub Mat Fac Gar Fac DSF Fac Was Fac DSF Fac Upp Machines Accessed 24 | . . 1 . 11 1 1 . 3 . 4 . 3 . Terminals 12 | . . . . 5 1 1 . 1 . 3 . 1 . Fabricators 6 | . . . . 4 . . . 1 . 1 . . . Repair Stations . | . . . . . . . . . . . . . . Recycling Units 1 | . . . . . . . . . . . . 1 . Scanalyzers 1 | . . . . 1 . . . . . . . . . Garrison Access 3 | . . . . 1 . . . 1 . . . 1 . Total Hacks 48 | . . 3 . 21 2 1 . 7 . 10 . 4 . Successful 23 | . . 3 . 9 1 1 . 2 . 3 . 4 . Failed 25 | . . . . 12 1 . . 5 . 7 . . . Catastrophic 2 | . . . . 2 . . . . . . . . . Database Lockouts . | . . . . . . . . . . . . . . Manual 4 | . . . . 1 . . . . . 3 . . . Terminals 24 | . . . . 9 2 1 . 3 . 8 . 1 . Fabricators 13 | . . . . 9 . . . 2 . 2 . . . Repair Stations . | . . . . . . . . . . . . . . Recycling Units 2 | . . . . . . . . . . . . 2 . Scanalyzers 2 | . . . . 2 . . . . . . . . . Garrison Access 4 | . . . . 1 . . . 2 . . . 1 . Terminal Hacks 10 | . . 3 . 2 1 1 . . . 2 . 1 . Record 3 | . . 3 . . . . . . . . . . . Open DSF 4 | . . . . 1 . 1 . . . 1 . 1 . Emergency Access Points 1 | . . . . . 1 . . . . . . . . Alert Level 1 | . . . . . . . . . . 1 . . . Recall Investigation 1 | . . . . 1 . . . . . . . . . Fabricator Hacks 6 | . . . . 4 . . . 2 . . . . . Network Status 1 | . . . . 1 . . . . . . . . . Load Schematic 1 | . . . . . . . . 1 . . . . . Build 4 | . . . . 3 . . . 1 . . . . . Repair Station Hacks . | . . . . . . . . . . . . . . Recycling Unit Hacks 2 | . . . . . . . . . . . . 2 . Process 1 | . . . . . . . . . . . . 1 . Retrieve Matter 1 | . . . . . . . . . . . . 1 . Scanalyzer 2 | . . . . 2 . . . . . . . . . Insert Component 1 | . . . . 1 . . . . . . . . . Analyze 1 | . . . . 1 . . . . . . . . . Garrison Access Hacks 2 | . . . . 1 . . . . . . . 1 . Unlock Access 1 | . . . . 1 . . . . . . . . . Seal Access 1 | . . . . . . . . . . . . 1 . Unauthorized Hacks 1 | . . . . . . . . . . 1 . . . Terminals 1 | . . . . . . . . . . 1 . . . Botnet 1 | . . . . . . . . . . 1 . . . Fabricators . | . . . . . . . . . . . . . . Repair Stations . | . . . . . . . . . . . . . . Recycling Units . | . . . . . . . . . . . . . . Scanalyzers . | . . . . . . . . . . . . . . Garrison Access . | . . . . . . . . . . . . . . Data Cores Recovered . | . . . . . . . . . . . . . . Used . | . . . . . . . . . . . . . . Hacking Detections 14 | . . . . 7 1 . . 3 . 2 . 1 . Full Trace Events 3 | . . . . 1 . . . 1 . 1 . . . Feedback Events 1 | . . . . . . . . . . 1 . . . Corruption 1 | . . . . . . . . . . 1 . . . Feedback Blocked . | . . . . . . . . . . . . . . Robot Schematics Acquired . | . . . . . . . . . . . . . . Robots Built 5 | . . . . 5 . . . . . . . . . Authchips . | . . . . . . . . . . . . . . Time 183 | . . . . 183 . . . . . . . . . Total Robot Build Rating 18 | . . . . 18 . . . . . . . . . Part Schematics Acquired 1 | . . . . 1 . . . . . . . . . Parts Built 4 | . . . . 2 . . . 2 . . . . . Authchips . | . . . . . . . . . . . . . . Time 190 | . . . . 106 . . . 84 . . . . . Total Part Build Rating 20 | . . . . 12 . . . 8 . . . . . Parts Repaired . | . . . . . . . . . . . . . . Time . | . . . . . . . . . . . . . . Parts Recycled . | . . . . . . . . . . . . . . Recycled Matter . | . . . . . . . . . . . . . . Retrieved Matter . | . . . . . . . . . . . . . . Retrieved Components . | . . . . . . . . . . . . . . Parts Scanalyzed 1 | . . . . 1 . . . . . . . . . Part Schematics Acquired 1 | . . . . 1 . . . . . . . . . Parts Damaged . | . . . . . . . . . . . . . . Bothacking | -11 -10 -10 -8 -7 -7 -7 -7 -6 -6 -6 -6 -5 -5 ------------ Run | Yrd Mat Sub Mat Fac Gar Fac DSF Fac Was Fac DSF Fac Upp Used RIF Installer . | . . . . . . . . . . . . . . Robots Hacked . | . . . . . . . . . . . . . . Non-combat . | . . . . . . . . . . . . . . Combat . | . . . . . . . . . . . . . . Robot Hacks Applied . | . . . . . . . . . . . . . . Relay Couplers Released . | . . . . . . . . . . . . . . Fabnet Peak Effective % . | . . . . . . . . . . . . . . Robots Rewired . | . . . . . . . . . . . . . . Allies Hacked . | . . . . . . . . . . . . . . Hacks Repelled . | . . . . . . . . . . . . . . Allies | -11 -10 -10 -8 -7 -7 -7 -7 -6 -6 -6 -6 -5 -5 -------- Run | Yrd Mat Sub Mat Fac Gar Fac DSF Fac Was Fac DSF Fac Upp Total Allies 8 | . . . . 5 . . . . . . . 3 . Largest Group 3 | . . . . 3 . . . . . . . 2 . Highest-Rated Group 62 | . . . . 60 . . . . . . . 62 . Highest-Rated Ally 31 | . . . . 20 . . . . . . . 31 . Total Orders 2 | . . . . . . . . 2 . . . . . EXPLORE 2 | . . . . . . . . 2 . . . . . Ally Attacks 32 | . . . . 21 . . . . . . . 11 . Total Damage 610 | . . . . 484 . . . . . . . 126 . Kills 8 | . . . . 5 . . . . . . . 3 . Allies Corrupted . | . . . . . . . . . . . . . . Allies Melted . | . . . . . . . . . . . . . . Intel | -11 -10 -10 -8 -7 -7 -7 -7 -6 -6 -6 -6 -5 -5 ------- Run | Yrd Mat Sub Mat Fac Gar Fac DSF Fac Was Fac DSF Fac Upp Robot Analysis Total . | . . . . . . . . . . . . . . Derelict Logs Recovered . | . . . . . . . . . . . . . . Drone Launches 2 | . . . . . . . . 2 . . . . . Drone Recoveries 2 | . . . . . . . . 2 . . . . . Exploration | -11 -10 -10 -8 -7 -7 -7 -7 -6 -6 -6 -6 -5 -5 ------------- Run | Yrd Mat Sub Mat Fac Gar Fac DSF Fac Was Fac DSF Fac Upp Turns Passed 4856 | . 92 258 298 1510 551 26 143 1196 125 235 48 159 215 Spaces Moved 3645 | 1 49 180 153 929 342 24 75 611 107 300 82 304 488 Core 479 | . . . . . . . . . . . 29 277 173 Treads . | . . . . . . . . . . . . . . Legs 982 | 1 49 180 153 599 . . . . . . . . . Wheels 1643 | . . . . 330 342 24 75 611 107 154 . . . Hover . | . . . . . . . . . . . . . . Flight 541 | . . . . . . . . . . 146 53 27 315 Fastest Speed 35 | 120 120 120 120 115 100 100 100 115 100 35 35 40 40 Average Speed 100 | 120 120 120 120 118 109 100 143 144 115 70 40 49 43 Slowest Speed 200 | 120 120 120 120 190 115 100 160 160 130 100 50 50 200 Overloaded Moves . | . . . . . . . . . . . . . . Propulsion Burnouts . | . . . . . . . . . . . . . . Robots Hopped 6 | . . . . . . . . . . . 1 . 5 Cave-ins Triggered . | . . . . . . . . . . . . . . Exploration Rate (%) 28 | 2 7 12 20 24 35 1 71 16 74 9 73 12 44 Regions Visited 13 Branch Regions 2 Pre-discovered Areas . | . . . . . . . . . . . . . . Known Exits Taken 3 | . . . . 1 . 1 . . . 1 . . . Unknown Exits Taken 5 | 1 1 1 1 . . . . . . . . 1 . Scrap Searched . | . . . . . . . . . . . . . . Spaces Dug 5 | . . . . 1 . . . 4 . . . . . Terrain Destroyed 147 | . . . . 70 58 . . 19 . . . . . Melee 5 | . . . . 1 . . . 4 . . . . . Projectile 16 | . . . . 1 . . . 15 . . . . . AOE 126 | . . . . 68 58 . . . . . . . . Terrain Rammed . | . . . . . . . . . . . . . . Walls Destroyed . | . . . . . . . . . . . . . . Machines Disabled . | . . . . . . . . . . . . . . Actions | -11 -10 -10 -8 -7 -7 -7 -7 -6 -6 -6 -6 -5 -5 --------- Run | Yrd Mat Sub Mat Fac Gar Fac DSF Fac Was Fac DSF Fac Upp Total 4415 | . 60 213 217 1224 441 24 103 811 108 322 95 313 484 Wait 303 | . . . 26 171 17 . . 88 . 1 . . . Move 3622 | . 48 179 152 929 341 23 74 611 106 299 79 303 478 Hop 6 | . . . . . . . . . . . 1 . 5 Pick Up 51 | . 1 8 5 12 3 . 8 9 2 2 . 1 . Fast Attach 38 | . 1 . 1 10 9 . 4 8 . 3 . 2 . Attach 18 | . . . 2 3 5 . 1 6 . . . 1 . Detach 7 | . . . . 2 . . 2 2 . . . 1 . Swap 21 | . 2 5 1 5 3 . . 5 . . . . . Drop 41 | . . 12 1 19 2 . . . . 4 . 2 1 Fire 220 | . 8 9 29 70 43 . . 61 . . . . . Melee 27 | . . . . 1 1 1 6 18 . . . . . Ram 19 | . . . . . . . . 3 . 13 . 3 . Kick . | . . . . . . . . . . . . . . Crush . | . . . . . . . . . . . . . . Escape Stasis 39 | . . . . . 16 . 8 . . . 15 . . Rewire 1 | . . . . . 1 . . . . . . . . Trap . | . . . . . . . . . . . . . . Miscellaneous 2 | . . . . 2 . . . . . . . . . Route ------- -11/Scrapyard -10/Materials -10/Subcaves -8/Materials -7/Factory (discovered 3 exits: *Sto / *Low / Gar) -7/Garrison -7/Factory -7/DSF -6/Factory -6/Waste -6/Factory -6/DSF -5/Factory -5/Upper Caves History --------- Turn | Location | Event 1 | -11/Scrapyard | Discovered new exit (range 0) 1 | -11/Scrapyard | Entered Materials 35 | -10/Materials | Discovered new exit (range 15) 93 | -10/Materials | Entered Subcaves 127 | -10/Subcaves | Visited Clippyterm 131 | -10/Subcaves | Learned Factory fabricator intel 165 | -10/Subcaves | Ambushed by swarm of Subdwellers 220 | -10/Subcaves | Lost 3 allies 332 | -10/Subcaves | Discovered new exit (range 10) 351 | -10/Subcaves | Entered Materials 351 | -8/Materials | Evolved 4 slots: Propulsion x1, Utility x2, Weapon x1 539 | -8/Materials | Build established: Scavenger-Mutant 566 | -8/Materials | Discovered new exit (range 16) 649 | -8/Materials | Entered Factory 649 | -7/Factory | Evolved 2 slots: Utility x2 650 | -7/Factory | Loaded intel: 6 fabricator locations 669 | -7/Factory | Discovered new exit (range 15) 691 | -7/Factory | Identified exit to Storage 936 | -7/Factory | Build established: Scavenger-Skirmisher 1087 | -7/Factory | Fabricated W-25 Informer (x2) 1329 | -7/Factory | Fabricated B-48 Gladiator (x3) 1840 | -7/Factory | Build established: Skirmisher 2025 | -7/Factory | Fabricated Disruptor Cannon (x2) 2068 | -7/Factory | Discovered new exit (range 9) 2075 | -7/Factory | Identified exit to Lower Caves 2159 | -7/Factory | Identified exit to Garrison 2159 | -7/Factory | Entered Garrison 2223 | -7/Garrison | Triggered checkpoint 2361 | -7/Garrison | Triggered checkpoint 2372 | -7/Garrison | Triggered checkpoint 2477 | -7/Garrison | Spotted B-75 Beast 2499 | -7/Garrison | Triggered checkpoint 2552 | -7/Garrison | Core integrity fell below 50% 2568 | -7/Garrison | Destroyed B-75 Beast 2595 | -7/Garrison | Lost 7 parts (1p1n2u3w) 2676 | -7/Garrison | Phase Generator disabled 2676 | -7/Garrison | Discovered new exit (range 11) 2686 | -7/Garrison | Identified exit to Factory 2710 | -7/Garrison | Entered Factory 2736 | -7/Factory | Identified exit to DSF 2736 | -7/Factory | Entered DSF 2796 | -7/DSF | Additional patrols routed to DSF 2838 | -7/DSF | Discovered new exit (range 13) 2879 | -7/DSF | Entered Factory 2879 | -6/Factory | Evolved 2 slots: Propulsion x1, Utility x1 2890 | -6/Factory | Build established: Scavenger-Mutant 3222 | -6/Factory | Garrison activated, responded to threat 3573 | -6/Factory | Build established: Mutant 3641 | -6/Factory | Fabricated Arm. Huge Wheel (x2) 3718 | -6/Factory | Lost 3 parts (1p1u1w) 3825 | -6/Factory | Spotted B-75 Beast 4075 | -6/Factory | Sucked down chute 4075 | -6/Factory | Entered Waste 4090 | -6/Waste | EMP discharged 4090 | -6/Waste | System corruption reached 10% 4108 | -6/Waste | Found Prototype Hackware 4140 | -6/Waste | Spotted C-40 Crusher 4141 | -6/Waste | Spotted C-40 Crusher 4148 | -6/Waste | Spotted C-40 Crusher 4148 | -6/Waste | Spotted C-40 Crusher 4149 | -6/Waste | Crushed by Compactor (1 part destroyed, 2 dropped) 4152 | -6/Waste | Crushed by Compactor (1 part destroyed) 4167 | -6/Waste | Spotted C-40 Crusher 4171 | -6/Waste | Spotted C-40 Crusher 4171 | -6/Waste | Crushed by Compactor (1 part destroyed, 1 dropped) 4176 | -6/Waste | Crushed by Compactor (1 part destroyed) 4180 | -6/Waste | Discovered new exit (range 16) 4190 | -6/Waste | EMP discharged 4199 | -6/Waste | Identified exit to Factory 4200 | -6/Waste | Entered Factory 4207 | -6/Factory | Lost 4 parts (2u2w) 4435 | -6/Factory | Identified exit to DSF 4435 | -6/Factory | Entered DSF 4473 | -6/DSF | Additional patrols routed to DSF 4476 | -6/DSF | Discovered new exit (range 15) 4483 | -6/DSF | Entered Factory 4483 | -5/Factory | Evolved 2 slots: Power x1, Weapon x1 4555 | -5/Factory | Allied Derelicts emerged from ambush trap array 4564 | -5/Factory | Spotted B-75 Beast 4624 | -5/Factory | Core integrity fell below 50% 4628 | -5/Factory | Found Launcher Loader 4637 | -5/Factory | Discovered new exit (range 12) 4642 | -5/Factory | Entered Upper Caves 4815 | -5/Upper Caves | Attracted the attention of an 0b10 checkpoint 4850 | -5/Upper Caves | Core integrity fell below 20% 4857 | -5/Upper Caves | Destroyed by H-66 Slayer with Gauss Rifle Last Messages --------------- 04737_ Slug penetrates Wall. 04741_ Penetrated by Slug. 04741_ Slug penetrates Wall. 04743_ Penetrated by Slug. 04768_ Slug penetrates Wall. 04768_ Nuclear Pulse Array destroyed. 04770_ Dropped Launcher Loader. 04772_ Slug penetrates Wall. 04773_ Penetrated by Slug. 04786_ Acquired 3 matter. 04787_ Acquired 22 matter. 04788_ Acquired 29 matter. 04815_ Y-64 Sentinel: "INTERCEPTING UNREGISTERED DERELICT." 04816_ Slug penetrates S-27 Virus. 04816_ S-27 Virus destroyed. 04819_ Penetrated by Slug. 04842_ Critical hit (Burn: +37). 04847_ Slug penetrates Wall. 04849_ Penetrated by Slug. Map ----- +----------------------------------------------------+ | ???????????####??????????????????????????????????? | | ???????????#""##????????????????????????????????## | | ???????????#"""##??????????????#####???????????## | | ???????????##"""###??????????## #??????????## | | ??????????##"" #####??????# #??????????# | | ??????????# ######## #???????????# | | ??????????# ### #?????????????# | | ??????????# #?# ##?????????????### | | ??????????# ##?######## #????????????##### | | ??????????# #######??## ##??????????## | | ??????????## ? #### #??????????# | | ???????????## ###?# ## ####???????##?## | | ????????????# #???# # ##????????## #?## | | ????????????## ##?### ##?????????# #?# | | ?????????????###??# #?????????## ### | | ??????????????????## #????????## ## | | ???????????????????## ###????????# ##? | | ????????????????????## #?????###### ## #?? | | ???????????????####?## Y##????# ## ## #?? | | ???????????????# ###g ##???# ##? | | ??????????????## ##???# #? | | ?????????????## ##?## ##### #? | | ????????????## ## ### ## #??#####? | | ???????????## ### hh ##### #???????? | | ???????????# ### #???## ##???????? | | ???????????## #### ## @ #????###????????? | | ????????????####??## ## #???????????????? | | ???????????????????#### ##???????????????? | | ??????????????????????# ##????????????????? | | ??????????????????????# ##?????????????????? | | ??????????????????????# #??????????????????? | | ?????????????????????# ??????????????????? | | ???????????????????? % ?????????????????? | | ???????????????????? # ????????????????? | | ??????????????????? # ???????????????? | | ???????????????????? # ??????????????? | | ???????????????????? ## ?????????????? | | ??????????????????? ?# ??????????????? | | ??????????????????? ??#### ????????????????? | | ???????????????????????????? ???????????????????? | | ?????????????????????????????????????????????????? | | ?????????????????????????????????????????????????? | | ?????????????????????????????????????????????????? | | ?????????????????????????????????????????????????? | | ?????????????????????????????????????????????????? | | ?????????????????????????????????????????????????? | | ?????????????????????????????????????????????????? | | ?????????????????????????????????????????????????? | | ?????????????????????????????????????????????????? | | ?????????????????????????????????????????????????? | +----------------------------------------------------+ Best States ------------- Heat Dissipation 48 Energy Generation 19 Energy Capacity 315 Matter Stores 300 Matter Capacity 450 Sight Range 16 Terrain Scan Range 16 Terrain Scan Density 210 Armor Coverage 800 Resistance: KI 20 Resistance: TH 20 Resistance: EX 20 Resistance: EM 20 Resistance: I 20 Resistance: S 20 Resistance: P 20 Core Shielding 20 Weapon Cycling 15 Melee Speed Boost 20 Evasion (%) 63 Recoil Reduction 1 Kinecelleration 30 Offensive Hacking 10 Defensive Hacking 10 Item Schematics ----------------- Arm. Huge Wheel | -7/Factory | Scanalyzed Robot Schematics ------------------ None Fabricated ------------ W-25 Informer | x2 | -7/Factory | Preloaded B-48 Gladiator | x3 | -7/Factory | Preloaded Disruptor Cannon | x2 | -7/Factory | Preloaded Arm. Huge Wheel | x2 | -6/Factory Alien Tech Used ----------------- None Achievements -------------- None Challenges ------------ None Game ------ Seed MicrodissipatorGammaStreamer Manual? 0 Play Time 01:07:25 Cumulative 63.4 hours Start 2025.01.17 @ 02:44:21 End 2025.01.17 @ 03:50:08 Sessions 1 Manual Loads 0 Difficulty Adventurer Special Mode None Game No. 84 Rogue 35 Adventurer 48 Explorer 1 Win Type - Total 2 Types 1/0/1/0/0/0/0/0/0 Lore% 13 Gallery% 48 Achievement% 37 Wizard Run 0 Options --------- Layout 2 ASCII 0 Keyboard 1 Movement Arrows Keybinds 0 Fullscreen 1 Font 32/Smallcaps Map View 50x44 Zoom Use 0% Tactical HUD 1 Map Filters NONE Filters NONE Steam X RUN: d6b357e7-a765-430c-94ab-1d20f8bbc319